fUSD/lending_fUSD_20260612
["ID","MTS","AMOUNT","RATE_DAILY","PERIOD"]
[424860024,1781211041000,-357.33334463,0.000202,2]
[424860019,1781211041000,-206.0,0.0002,2]
[424860029,1781211041000,-2157.14243826,0.00020526,2]
[424860028,1781211041000,-151.0,0.00020526,2]
[424860031,1781211041000,-150.0,0.0002058,2]
[424860041,1781211041000,-1206.0,0.00021,2]
[424860018,1781211041000,-153.08496381,0.0002,20]
[424860040,1781211041000,-788.0,0.00021,2]
[424860030,1781211041000,-150.0,0.0002058,2]
[424860034,1781211041000,-357.33334463,0.000208,2]
[424860036,1781211041000,-248.0,0.00021,2]
[424860033,1781211041000,-357.33334463,0.000206,2]
[424860035,1781211041000,-473.64339052,0.00021,2]
[424860037,1781211041000,-269.0,0.00021,2]
[424860039,1781211041000,-337.0,0.00021,2]
[424860038,1781211041000,-466.629508,0.00021,2]
[424860032,1781211041000,-151.29325014,0.0002058,2]
[424860043,1781211041000,-199.0,0.00021,2]
[424860053,1781211041000,-2236.95670847,0.00021074,2]
[424860042,1781211041000,-241.0,0.00021,2]
[424860118,1781211042000,-337.0,0.00023,2]
[424860115,1781211042000,-248.0,0.00023,2]
[424860104,1781211042000,-200.0,0.00022119,2]
[424860120,1781211042000,-1206.0,0.00023,2]
[424860114,1781211042000,-158.55225595,0.00022991,2]
[424860117,1781211042000,-466.629508,0.00023,2]
[424860108,1781211042000,-700.0,0.0002244,10]
[424860119,1781211042000,-788.0,0.00023,2]
[424860112,1781211042000,-150.0,0.00022991,2]
[424860109,1781211042000,-1897.35,0.00022466,2]
[424860107,1781211042000,-1150.5,0.00022353,2]
[424860113,1781211042000,-174.98940847,0.00022991,2]
[424860116,1781211042000,-269.0,0.00023,2]
[424860122,1781211042000,-199.0,0.00023,2]
[424860137,1781211042000,-250.0,0.00023633,2]
[424860121,1781211042000,-241.0,0.00023,2]
[424860124,1781211042000,-260.0,0.00023,2]
[424860126,1781211042000,-865.0,0.00023,2]
[424860136,1781211042000,-300.0,0.00023529,2]
[424860129,1781211042000,-382.0,0.00023,2]
[424860128,1781211042000,-356.0,0.00023,2]
[424860125,1781211042000,-279.0,0.00023,2]
[424860127,1781211042000,-206.0,0.00023,2]
[424860130,1781211042000,-150.0,0.00023014,2]
[424860131,1781211042000,-2586.85809042,0.00023266,2]
[424860135,1781211042000,-389.72635995,0.00023435,2]
[424860133,1781211042000,-1839.64,0.00023331,7]
[424860123,1781211042000,-448.0,0.00023,2]
[424860100,1781211042000,-356.0,0.00022,2]
[424860076,1781211042000,-5000.0,0.00021918,2]
[424860102,1781211042000,-450.0,0.00022,2]
[424860134,1781211042000,-300.0,0.00023361,2]
[424860077,1781211042000,-150.0,0.00021918,2]
[424860079,1781211042000,-300.0,0.00021999,2]
[424860078,1781211042000,-150.0,0.00021918,2]
[424860083,1781211042000,-500.0,0.00022,3]
[424860080,1781211042000,-8251.5,0.00022,10]
[424860081,1781211042000,-500.0,0.00022,3]
[424860086,1781211042000,-248.0,0.00022,2]
[424860087,1781211042000,-269.0,0.00022,2]
[424860082,1781211042000,-500.0,0.00022,3]
[424860084,1781211042000,-500.0,0.00022,3]
[424860085,1781211042000,-500.0,0.00022,3]
[424860088,1781211042000,-466.629508,0.00022,2]
[424860105,1781211042000,-333.81194748,0.0002217,2]
[424860089,1781211042000,-337.0,0.00022,2]
[424860091,1781211042000,-1206.0,0.00022,2]
[424860098,1781211042000,-206.0,0.00022,2]
[424860093,1781211042000,-199.0,0.00022,2]
[424860097,1781211042000,-865.0,0.00022,2]
[424860095,1781211042000,-260.0,0.00022,2]
[424860094,1781211042000,-448.0,0.00022,2]
[424860096,1781211042000,-279.0,0.00022,2]
[424860099,1781211042000,-730.19,0.00022,2]
[424860101,1781211042000,-382.0,0.00022,2]
[424860111,1781211042000,-2494.55939288,0.00022718,2]
[424860103,1781211042000,-2000.0,0.00022032,7]
[424860110,1781211042000,-696.5,0.00022466,2]
[424860106,1781211042000,-2405.55389863,0.0002217,2]
[424860090,1781211042000,-788.0,0.00022,2]
[424860132,1781211042000,-150.0,0.00023288,2]
[424860092,1781211042000,-241.0,0.00022,2]
[424860140,1781211042000,-500.0,0.00023704,30]
[424860171,1781211042000,-603.57284468,0.00024144,7]
[424860167,1781211042000,-382.0,0.00024,2]
[424860174,1781211042000,-666.0,0.00024173,2]
[424860173,1781211042000,-300.0,0.00024173,2]
[424860172,1781211042000,-150.0,0.00024164,2]
[424860179,1781211042000,-784.89,0.00024174,2]
[424860191,1781211042000,-2781.82699784,0.00024362,2]
[424860199,1781211042000,-151.0,0.00024658,2]
[424860190,1781211042000,-1150.5,0.00024324,2]
[424860178,1781211042000,-26046.27,0.00024174,2]
[424860181,1781211042000,-500.0,0.00024252,30]
[424860184,1781211042000,-500.0,0.00024252,30]
[424860180,1781211042000,-509.05320754,0.00024178,30]
[424860175,1781211042000,-1904.64,0.00024174,2]
[424860182,1781211042000,-500.0,0.00024252,30]
[424860185,1781211042000,-300.0,0.00024265,2]
[424860187,1781211042000,-94631.6249479,0.00024266,2]
[424860138,1781211042000,-993.03108268,0.00023661,2]
[424860188,1781211042000,-603.57284468,0.00024287,7]
[424860192,1781211042000,-174.2022098,0.00024431,7]
[424860194,1781211042000,-603.57284468,0.00024431,7]
[424860195,1781211042000,-4104.50670373,0.00024544,2]
[424860198,1781211042000,-1000.0,0.00024658,2]
[424860193,1781211042000,-240.6925788,0.00024431,7]
[424860201,1781211042000,-150.0,0.00024658,2]
[424860197,1781211042000,-172.14,0.00024658,2]
[424860200,1781211042000,-151.0,0.00024658,2]
[424860196,1781211042000,-603.57284468,0.00024574,14]
[424860183,1781211042000,-500.0,0.00024252,30]
[424860169,1781211042000,-174.2022098,0.00024144,7]
[424860186,1781211042000,-666.0,0.00024265,2]
[424860168,1781211042000,-603.57284468,0.00024,2]
[424860177,1781211042000,-3102.91,0.00024174,2]
[424860149,1781211042000,-529.0,0.000239,7]
[424860144,1781211042000,-2682.57183977,0.00023814,2]
[424860146,1781211042000,-603.57284468,0.00023857,2]
[424860142,1781211042000,-500.0,0.00023704,30]
[424860148,1781211042000,-240.6925788,0.00023857,2]
[424860145,1781211042000,-150.0,0.00023831,2]
[424860147,1781211042000,-174.2022098,0.00023857,2]
[424860141,1781211042000,-500.0,0.00023704,30]
[424860150,1781211042000,-500.0,0.00023978,30]
[424860139,1781211042000,-500.0,0.00023704,30]
[424860152,1781211042000,-248.0,0.00024,2]
[424860155,1781211042000,-337.0,0.00024,2]
[424860153,1781211042000,-269.0,0.00024,2]
[424860143,1781211042000,-915.47434783,0.00023713,2]
[424860163,1781211042000,-865.0,0.00024,2]
[424860170,1781211042000,-240.6925788,0.00024144,7]
[424860158,1781211042000,-241.0,0.00024,2]
[424860166,1781211042000,-500.0,0.00024,2]
[424860164,1781211042000,-206.0,0.00024,2]
[424860161,1781211042000,-260.0,0.00024,2]
[424860160,1781211042000,-448.0,0.00024,2]
[424860165,1781211042000,-356.0,0.00024,2]
[424860154,1781211042000,-466.629508,0.00024,2]
[424860157,1781211042000,-1206.0,0.00024,2]
[424860151,1781211042000,-500.0,0.00023978,30]
[424860156,1781211042000,-788.0,0.00024,2]
[424860162,1781211042000,-279.0,0.00024,2]
[424860159,1781211042000,-199.0,0.00024,2]
[424860233,1781211043000,-222.0,0.00025,2]
[424860240,1781211043000,-383.29885595,0.00025,2]
[424860229,1781211043000,-465.0,0.00025,2]
[424860226,1781211043000,-1216.0,0.00025,2]
[424860228,1781211043000,-215.0,0.00025,2]
[424860230,1781211043000,-279.0,0.00025,2]
[424860235,1781211043000,-154.29,0.00025,2]
[424860239,1781211043000,-154.29,0.00025,2]
[424860237,1781211043000,-154.29,0.00025,2]
[424860234,1781211043000,-363.0,0.00025,2]
[424860241,1781211043000,-174.2022098,0.00025005,30]
[424860236,1781211043000,-154.29,0.00025,2]
[424860243,1781211043000,-603.57284468,0.00025005,30]
[424860242,1781211043000,-240.6925788,0.00025005,14]
[424860244,1781211043000,-158.62312023,0.00025113,120]
[424860245,1781211043000,-240.69257878,0.00025113,60]
[424860227,1781211043000,-244.0,0.00025,2]
[424860238,1781211043000,-154.29,0.00025,2]
[424860225,1781211043000,-807.0,0.00025,2]
[424860222,1781211043000,-253.0,0.00025,2]
[424860232,1781211043000,-874.0,0.00025,2]
[424860203,1781211043000,-240.6925788,0.00024718,14]
[424860204,1781211043000,-603.57284468,0.00024718,14]
[424860202,1781211043000,-174.2022098,0.00024718,14]
[424860216,1781211043000,-1227.0,0.00024762,2]
[424860217,1781211043000,-933.0,0.00024762,2]
[424860219,1781211043000,-603.57284468,0.00024861,14]
[424860221,1781211043000,-1839.64,0.00024996,7]
[424860220,1781211043000,-2884.75459676,0.0002491,2]
[424860218,1781211043000,-6076.0,0.00024762,2]
[424860214,1781211043000,-382.0,0.00024762,2]
[424860210,1781211043000,-1358.0,0.00024762,2]
[424860205,1781211043000,-730.19,0.0002472,7]
[424860215,1781211043000,-1274.0,0.00024762,2]
[424860207,1781211043000,-300.0,0.00024761,10]
[424860212,1781211043000,-3558.941,0.00024762,2]
[424860223,1781211043000,-277.0,0.00025,2]
[424860231,1781211043000,-298.0,0.00025,2]
[424860224,1781211043000,-353.0,0.00025,2]
[424860248,1781211043000,-240.6925788,0.00025292,30]
[424860246,1781211043000,-603.57284468,0.00025148,30]
[424860249,1781211043000,-603.57284468,0.00025292,60]
[424860272,1781211043000,-550.0,0.00026,2]
[424860276,1781211043000,-500.0,0.00026104,2]
[424860281,1781211043000,-301.32,0.00026171,2]
[424860271,1781211043000,-2500.0,0.000259,7]
[424860275,1781211043000,-500.0,0.00026104,2]
[424860280,1781211043000,-860.78,0.00026171,2]
[424860277,1781211043000,-540.65875253,0.00026104,2]
[424860283,1781211043000,-3000.0,0.00026171,2]
[424860278,1781211043000,-198.30946013,0.00026114,2]
[424860279,1781211043000,-158.55225595,0.00026115,2]
[424860284,1781211043000,-2847.32,0.00026171,2]
[424860286,1781211043000,-1561.29,0.00026184,2]
[424860288,1781211043000,-612.279922,0.00026384,2]
[424860289,1781211043000,-612.279922,0.00026384,2]
[424860291,1781211043000,-612.279922,0.00026384,2]
[424860290,1781211043000,-612.279922,0.00026384,2]
[424860252,1781211043000,-500.0,0.00025344,2]
[424860282,1781211043000,-3000.0,0.00026171,2]
[424860274,1781211043000,-500.0,0.00026104,2]
[424860287,1781211043000,-1150.5,0.00026296,2]
[424860273,1781211043000,-529.0,0.000261,7]
[424860247,1781211043000,-174.2022098,0.00025292,60]
[424860270,1781211043000,-603.57284468,0.00025866,120]
[424860250,1781211043000,-500.0,0.00025344,2]
[424860251,1781211043000,-500.0,0.00025344,2]
[424860254,1781211043000,-500.0,0.00025344,2]
[424860256,1781211043000,-603.57284468,0.00025435,60]
[424860258,1781211043000,-174.2022098,0.00025579,60]
[424860268,1781211043000,-191.0,0.00025865,2]
[424860269,1781211043000,-174.2022098,0.00025866,120]
[424860255,1781211043000,-150.0,0.00025373,2]
[424860263,1781211043000,-300.0,0.00025785,10]
[424860266,1781211043000,-26046.27,0.00025786,2]
[424860261,1781211043000,-603.57284468,0.00025579,60]
[424860259,1781211043000,-240.6925788,0.00025579,30]
[424860264,1781211043000,-1904.64,0.00025786,2]
[424860265,1781211043000,-3102.91,0.00025786,2]
[424860267,1781211043000,-784.89,0.00025786,2]
[424860262,1781211043000,-603.57284468,0.00025722,120]
[424860257,1781211043000,-2991.49051684,0.00025458,2]
[424860329,1781211044000,-300.0,0.00027397,2]
[424860322,1781211044000,-150.0,0.00027397,2]
[424860331,1781211044000,-151.0,0.00027397,2]
[424860324,1781211044000,-150.0,0.00027397,2]
[424860330,1781211044000,-154.024201,0.00027397,2]
[424860328,1781211044000,-760.29,0.00027397,20]
[424860332,1781211044000,-151.0,0.00027397,2]
[424860325,1781211044000,-150.0,0.00027397,2]
[424860323,1781211044000,-150.0,0.00027397,2]
[424860333,1781211044000,-151.0,0.00027397,2]
[424860327,1781211044000,-1500.0,0.00027397,2]
[424860326,1781211044000,-288.75019747,0.00027397,2]
[424860342,1781211044000,-615.49645136,0.00027515,7]
[424860341,1781211044000,-500.0,0.000275,7]
[424860335,1781211044000,-162.89675845,0.00027397,7]
[424860334,1781211044000,-151.0,0.00027397,2]
[424860339,1781211044000,-839.09712601,0.00027451,2]
[424860340,1781211044000,-839.09712601,0.0002748,2]
[424860337,1781211044000,-839.09712601,0.00027427,2]
[424860336,1781211044000,-221.11,0.000274,7]
[424860338,1781211044000,-730.19,0.00027439,7]
[424860346,1781211044000,-315.3,0.0002755,2]
[424860344,1781211044000,-709.17,0.0002755,30]
[424860345,1781211044000,-1228.5,0.0002755,30]
[424860348,1781211044000,-315.3,0.0002758,7]
[424860321,1781211044000,-150.0,0.00027397,2]
[424860343,1781211044000,-952.29,0.0002755,30]
[424860315,1781211044000,-1540.09432816,0.00027383,2]
[424860298,1781211044000,-650.54,0.00026761,2]
[424860314,1781211044000,-839.09712601,0.00027378,2]
[424860295,1781211044000,-358.66,0.00026748,2]
[424860293,1781211044000,-1839.64,0.00026661,7]
[424860292,1781211044000,-150.0,0.00026641,2]
[424860294,1781211044000,-183.031565,0.00026679,14]
[424860296,1781211044000,-3000.0,0.00026748,2]
[424860299,1781211044000,-1049.90766312,0.0002688,2]
[424860297,1781211044000,-686.38,0.00026748,2]
[424860302,1781211044000,-765.68164626,0.00027291,7]
[424860306,1781211044000,-188.1983731,0.00027369,7]
[424860309,1781211044000,-156.31027629,0.00027369,7]
[424860349,1781211044000,-316.4,0.0002758,7]
[424860307,1781211044000,-192.7238033,0.00027369,7]
[424860316,1781211044000,-839.09712601,0.00027387,2]
[424860303,1781211044000,-185.32804338,0.00027362,7]
[424860308,1781211044000,-165.78790847,0.00027369,7]
[424860300,1781211044000,-500.0,0.00026888,2]
[424860304,1781211044000,-188.70233048,0.00027362,7]
[424860305,1781211044000,-181.85894618,0.00027362,7]
[424860311,1781211044000,-156.0553129,0.00027369,7]
[424860317,1781211044000,-300.0,0.00027396,10]
[424860319,1781211044000,-500.0,0.00027397,20]
[424860313,1781211044000,-166.43965368,0.00027369,7]
[424860310,1781211044000,-150.0748195,0.00027369,7]
[424860312,1781211044000,-153.28769057,0.00027369,2]
[424860320,1781211044000,-538.02332496,0.00027397,20]
[424860318,1781211044000,-500.0,0.00027397,20]
[424860301,1781211044000,-500.0,0.00026888,2]
[424860347,1781211044000,-316.4,0.0002755,2]
[424860394,1781211044000,-839.09712601,0.00027953,2]
[424860351,1781211044000,-839.09712601,0.00027596,2]
[424860382,1781211044000,-315.3,0.00027855,7]
[424860384,1781211044000,-952.29,0.00027872,2]
[424860387,1781211044000,-315.3,0.00027885,30]
[424860385,1781211044000,-709.17,0.00027872,2]
[424860386,1781211044000,-1228.5,0.00027872,2]
[424860388,1781211044000,-316.4,0.00027885,30]
[424860389,1781211044000,-6710.86502086,0.00027909,2]
[424860392,1781211044000,-315.3,0.00027946,7]
[424860390,1781211044000,-315.3,0.00027916,2]
[424860397,1781211044000,-315.3,0.00027977,30]
[424860398,1781211044000,-316.4,0.00027977,30]
[424860395,1781211044000,-839.09712601,0.00027966,2]
[424860383,1781211044000,-316.4,0.00027855,7]
[424860400,1781211044000,-4104.50670373,0.00027996,2]
[424860399,1781211044000,-839.09712601,0.00027992,2]
[424860396,1781211044000,-150.0,0.00027973,2]
[424860393,1781211044000,-316.4,0.00027946,7]
[424860401,1781211044000,-529.0,0.00028,7]
[424860403,1781211044000,-315.3,0.00028007,2]
[424860402,1781211044000,-600.0,0.00028,2]
[424860405,1781211044000,-952.29,0.00028033,30]
[424860406,1781211044000,-709.17,0.00028033,30]
[424860407,1781211044000,-1228.5,0.00028033,30]
[424860404,1781211044000,-316.4,0.00028007,2]
[424860409,1781211044000,-316.4,0.00028038,7]
[424860350,1781211044000,-255.0,0.00027589,2]
[424860391,1781211044000,-316.4,0.00027916,2]
[424860381,1781211044000,-316.4,0.00027824,2]
[424860408,1781211044000,-315.3,0.00028038,7]
[424860380,1781211044000,-315.3,0.00027824,2]
[424860379,1781211044000,-839.09712601,0.0002781,2]
[424860352,1781211044000,-915.47434783,0.00027599,2]
[424860354,1781211044000,-316.4,0.00027611,30]
[424860367,1781211044000,-839.09712601,0.00027745,2]
[424860356,1781211044000,-316.4,0.00027641,2]
[424860366,1781211044000,-316.4,0.00027733,2]
[424860355,1781211044000,-315.3,0.00027641,2]
[424860359,1781211044000,-500.0,0.00027694,15]
[424860357,1781211044000,-315.3,0.00027672,7]
[424860358,1781211044000,-316.4,0.00027672,7]
[424860364,1781211044000,-1228.5,0.00027711,7]
[424860360,1781211044000,-315.3,0.00027702,30]
[424860362,1781211044000,-952.29,0.00027711,7]
[424860353,1781211044000,-315.3,0.00027611,30]
[424860365,1781211044000,-315.3,0.00027733,2]
[424860372,1781211044000,-1227.0,0.00027762,2]
[424860373,1781211044000,-933.0,0.00027762,2]
[424860377,1781211044000,-315.3,0.00027794,30]
[424860370,1781211044000,-382.0,0.00027762,2]
[424860361,1781211044000,-316.4,0.00027702,30]
[424860376,1781211044000,-316.4,0.00027763,7]
[424860375,1781211044000,-315.3,0.00027763,7]
[424860374,1781211044000,-6076.0,0.00027762,2]
[424860371,1781211044000,-1274.0,0.00027762,2]
[424860368,1781211044000,-1358.0,0.00027762,2]
[424860369,1781211044000,-3556.0,0.00027762,2]
[424860363,1781211044000,-709.17,0.00027711,7]
[424860378,1781211044000,-316.4,0.00027794,30]
[424860450,1781211045000,-331.57581693,0.00028662,7]
[424860448,1781211045000,-376.39674621,0.00028662,7]
[424860446,1781211045000,-152.59230985,0.00028662,7]
[424860445,1781211045000,-363.71789236,0.00028655,7]
[424860449,1781211045000,-385.4476066,0.00028662,7]
[424860447,1781211045000,-153.84416623,0.00028662,7]
[424860444,1781211045000,-377.40466096,0.00028655,7]
[424860439,1781211045000,-839.09712601,0.00028526,2]
[424860440,1781211045000,-839.09712601,0.00028583,2]
[424860438,1781211045000,-500.0,0.00028525,16]
[424860443,1781211045000,-370.65608675,0.00028655,7]
[424860451,1781211045000,-300.149639,0.00028662,7]
[424860452,1781211045000,-312.1106258,0.00028662,7]
[424860462,1781211045000,-952.29,0.00028838,2]
[424860460,1781211045000,-1228.5,0.00028677,7]
[424860453,1781211045000,-189.92424285,0.00028662,7]
[424860461,1781211045000,-839.09712601,0.00028814,2]
[424860454,1781211045000,-306.57538114,0.00028662,2]
[424860456,1781211045000,-302.44310216,0.00028662,7]
[424860455,1781211045000,-163.46200504,0.00028662,7]
[424860457,1781211045000,-332.87930736,0.00028662,7]
[424860458,1781211045000,-952.29,0.00028677,7]
[424860459,1781211045000,-709.17,0.00028677,7]
[424860464,1781211045000,-1228.5,0.00028838,2]
[424860441,1781211045000,-839.09712601,0.00028596,2]
[424860463,1781211045000,-709.17,0.00028838,2]
[424860442,1781211045000,-325.7935169,0.00028655,7]
[424860416,1781211045000,-316.4,0.00028099,2]
[424860434,1781211045000,-839.09712601,0.00028515,2]
[424860467,1781211045000,-167.46807175,0.00028971,2]
[424860414,1781211045000,-839.09712601,0.00028092,2]
[424860413,1781211045000,-316.4,0.00028068,30]
[424860410,1781211045000,-6710.86502086,0.00028044,2]
[424860411,1781211045000,-839.09712601,0.00028054,2]
[424860412,1781211045000,-315.3,0.00028068,30]
[424860417,1781211045000,-855.0,0.00028117,10]
[424860418,1781211045000,-315.43,0.0002813,7]
[424860415,1781211045000,-315.3,0.00028099,2]
[424860424,1781211045000,-221.11,0.000282,7]
[424860420,1781211045000,-952.29,0.00028194,7]
[424860422,1781211045000,-1228.5,0.00028194,7]
[424860437,1781211045000,-1228.5,0.00028516,30]
[424860421,1781211045000,-709.17,0.00028194,7]
[424860419,1781211045000,-316.48,0.0002813,7]
[424860425,1781211045000,-1150.5,0.00028267,2]
[424860427,1781211045000,-1839.64,0.00028326,7]
[424860430,1781211045000,-1228.5,0.00028355,2]
[424860426,1781211045000,-172.14,0.0002831,2]
[424860431,1781211045000,-839.09712601,0.00028419,2]
[424860429,1781211045000,-709.17,0.00028355,2]
[424860432,1781211045000,-839.09712601,0.00028463,2]
[424860428,1781211045000,-952.29,0.00028355,2]
[424860433,1781211045000,-839.09712601,0.00028476,2]
[424860435,1781211045000,-952.29,0.00028516,30]
[424860436,1781211045000,-709.17,0.00028516,30]
[424860423,1781211045000,-839.09712601,0.00028195,2]
[424860466,1781211045000,-839.09712601,0.00028962,2]
[424860465,1781211045000,-642.0,0.000289,2]
[424860468,1781211045000,-839.09712601,0.00028984,2]
[424860501,1781211045000,-500.0,0.00029381,18]
[424860509,1781211045000,-208.97055616,0.00029524,7]
[424860498,1781211045000,-319.0,0.00029313,2]
[424860507,1781211045000,-545.57683854,0.00029517,7]
[424860504,1781211045000,-199.02709662,0.00029517,7]
[424860506,1781211045000,-566.10699145,0.00029517,7]
[424860503,1781211045000,-555.98413013,0.00029517,7]
[424860505,1781211045000,-244.64774395,0.00029517,7]
[424860508,1781211045000,-151.4770914,0.00029517,7]
[424860510,1781211045000,-211.25981778,0.00029524,7]
[424860513,1781211045000,-305.18461971,0.00029524,7]
[424860515,1781211045000,-181.66088399,0.00029524,7]
[424860502,1781211045000,-488.69027535,0.00029517,7]
[424860512,1781211045000,-218.2486721,0.00029524,7]
[424860511,1781211045000,-240.86109358,0.00029524,7]
[424860516,1781211045000,-307.68833246,0.00029524,7]
[424860520,1781211045000,-450.2244585,0.00029524,7]
[424860517,1781211045000,-564.59511931,0.00029524,7]
[424860514,1781211045000,-208.75109454,0.00029524,7]
[424860518,1781211045000,-578.1714099,0.00029524,7]
[424860522,1781211045000,-247.42429171,0.00029524,7]
[424860521,1781211045000,-468.16593869,0.00029524,7]
[424860523,1781211045000,-198.36476642,0.00029524,7]
[424860470,1781211045000,-221.11,0.00029,7]
[424860525,1781211045000,-459.86307171,0.00029524,2]
[424860524,1781211045000,-379.8484857,0.00029524,7]
[424860519,1781211045000,-497.3637254,0.00029524,7]
[424860499,1781211045000,-150.0,0.00029372,2]
[424860526,1781211045000,-326.92401008,0.00029524,7]
[424860494,1781211045000,-356.0,0.00029159,30]
[424860497,1781211045000,-158.55225595,0.00029238,2]
[424860471,1781211045000,-952.33,0.00029,30]
[424860472,1781211045000,-709.19,0.00029,30]
[424860473,1781211045000,-1228.59,0.00029,30]
[424860474,1781211045000,-233.36,0.00029,2]
[424860476,1781211045000,-233.36,0.00029,2]
[424860484,1781211045000,-337.0,0.00029155,30]
[424860482,1781211045000,-200.0,0.0002906,2]
[424860485,1781211045000,-788.0,0.00029155,30]
[424860480,1781211045000,-3952.94946312,0.00029,2]
[424860477,1781211045000,-233.36,0.00029,2]
[424860479,1781211045000,-4055.67,0.00029,120]
[424860475,1781211045000,-233.36,0.00029,2]
[424860469,1781211045000,-233.36,0.00029,2]
[424860481,1781211045000,-839.09712601,0.00029026,2]
[424860483,1781211045000,-269.0,0.00029155,30]
[424860491,1781211045000,-279.0,0.00029159,30]
[424860495,1781211045000,-382.0,0.00029159,30]
[424860496,1781211045000,-248.0,0.00029159,30]
[424860490,1781211045000,-260.0,0.00029159,30]
[424860492,1781211045000,-865.0,0.00029159,30]
[424860489,1781211045000,-448.0,0.00029159,30]
[424860493,1781211045000,-206.0,0.00029159,30]
[424860488,1781211045000,-199.0,0.00029159,30]
[424860486,1781211045000,-1206.0,0.00029159,30]
[424860478,1781211045000,-233.36,0.00029,2]
[424860487,1781211045000,-241.0,0.00029159,30]
[424860565,1781211046000,-1000.0,0.0003,2]
[424860560,1781211046000,-300.0,0.00029999,10]
[424860568,1781211046000,-300.0,0.00030079,10]
[424860570,1781211046000,-1030.0,0.0003008,2]
[424860569,1781211046000,-500.0,0.0003008,2]
[424860561,1781211046000,-37154.77266569,0.0003,7]
[424860559,1781211046000,-1839.64,0.00029992,7]
[424860555,1781211046000,-600.88936551,0.000299,2]
[424860563,1781211046000,-18577.38633284,0.0003,7]
[424860562,1781211046000,-1000.0,0.0003,2]
[424860557,1781211046000,-600.88936551,0.000299,2]
[424860571,1781211046000,-1068.11,0.0003008,2]
[424860566,1781211046000,-650.0,0.0003,2]
[424860564,1781211046000,-18577.38633284,0.0003,7]
[424860581,1781211046000,-721.12765534,0.0003008,2]
[424860580,1781211046000,-1235.18214925,0.0003008,2]
[424860572,1781211046000,-578.20924308,0.0003008,2]
[424860574,1781211046000,-1201.65948645,0.0003008,2]
[424860573,1781211046000,-174.61919141,0.0003008,2]
[424860578,1781211046000,-1191.11104074,0.0003008,2]
[424860579,1781211046000,-152.0,0.0003008,2]
[424860577,1781211046000,-152.0,0.0003008,2]
[424860553,1781211046000,-600.88936551,0.000299,2]
[424860567,1781211046000,-406.0,0.00030024,2]
[424860556,1781211046000,-600.88936551,0.000299,2]
[424860542,1781211046000,-600.88936551,0.000299,2]
[424860554,1781211046000,-600.88936551,0.000299,2]
[424860529,1781211046000,-242.81820882,0.00029524,7]
[424860527,1781211046000,-453.66465325,0.00029524,7]
[424860530,1781211046000,-205.40773364,0.00029524,7]
[424860528,1781211046000,-207.178928,0.00029524,5]
[424860531,1781211046000,-499.31896103,0.00029524,7]
[424860532,1781211046000,-213.66750967,0.00029524,7]
[424860536,1781211046000,-4055.67,0.00029685,120]
[424860534,1781211046000,-529.0,0.000296,7]
[424860538,1781211046000,-600.88936557,0.000299,2]
[424860539,1781211046000,-600.88936551,0.000299,2]
[424860541,1781211046000,-600.88936551,0.000299,2]
[424860544,1781211046000,-600.88936551,0.000299,2]
[424860575,1781211046000,-1107.63007,0.0003008,2]